bitfinex/quotes_ETHUSD_20241001
["timestamp","ask_amount","ask_price","bid_price","bid_amount"]
[1727762720457,3.77818,2646.8,2646.5,0.12925767]
[1727762721292,3.77802,2646.9,2646.5,0.12925767]
[1727762722082,3.77802,2646.9,2646.6,0.7728]
[1727762722604,3.77802,2646.9,2646.7,0.12915414]
[1727762728987,0.3956061,2647.0,2646.7,0.12915414]
[1727762731462,4.1735461,2647.0,2646.7,0.12915414]
[1727762731662,0.3956061,2647.0,2646.7,0.12915414]
[1727762732007,0.3956061,2647.0,2646.7,0.18965247]
[1727762734370,4.1735561,2647.0,2646.7,0.18965247]
[1727762734606,0.3956061,2647.0,2646.7,0.18965247]
[1727762738911,3.77779,2647.1,2646.7,0.18965247]
[1727762740278,4.17307871,2647.3,2646.8,0.7732]
[1727762740507,0.39556871,2647.3,2646.8,6.16080809]
[1727762741015,3.77737,2647.4,2646.9,0.96278258]
[1727762741519,3.77737,2647.4,2646.9,4.74074258]
[1727762741681,3.77737,2647.4,2646.9,0.96278258]
[1727762741882,3.77737,2647.4,2646.9,1.59781565]
[1727762742124,7.55475,2647.4,2646.9,1.59781565]
[1727762742438,3.77737,2647.4,2646.9,1.59781565]
[1727762743112,7.55475,2647.4,2646.9,1.59781565]
[1727762743316,3.77737,2647.4,2646.9,1.59781565]
[1727762743891,7.55474,2647.4,2646.9,1.59781565]
[1727762744292,3.77737,2647.4,2646.9,1.59781565]
[1727762747723,3.77737,2647.4,2646.9,5.37580565]
[1727762747886,3.77737,2647.4,2646.9,4.74077258]
[1727762748319,3.77737,2647.4,2646.9,0.96278258]
[1727762748850,7.55474,2647.4,2646.9,0.96278258]
[1727762749031,3.77737,2647.4,2646.9,0.96278258]
[1727762749546,3.77737,2647.4,2646.9,4.74075258]
[1727762750104,3.77737,2647.4,2646.9,24.22075258]
[1727762750864,3.77737,2647.4,2646.9,20.44278258]
[1727762751641,7.55477,2647.4,2646.9,20.44278258]
[1727762752420,3.77737,2647.4,2646.9,20.44278258]
[1727762752638,7.55474,2647.4,2646.9,20.44278258]
[1727762752847,3.77737,2647.4,2646.9,20.44278258]
[1727762753050,7.55476,2647.4,2646.9,20.44278258]
[1727762753549,3.77744,2647.3,2646.9,20.44278258]
[1727762754055,7.55475,2647.4,2646.9,20.44278258]
[1727762754654,3.7775,2647.3,2646.9,20.44278258]
[1727762756355,3.7775,2647.3,2646.9,19.66958258]
[1727762756647,3.7775,2647.3,2647.0,0.7839]
[1727762756951,3.7775,2647.3,2647.1,0.18923644]
[1727762763754,3.77724,2647.5,2647.2,0.7664]
[1727762764330,3.77724,2647.5,2647.3,0.18911884]
[1727762764533,3.77713,2647.6,2647.3,0.18911884]
[1727762764731,3.77722,2647.5,2647.3,0.18911884]
[1727762765566,3.77729,2647.4,2647.3,0.18911884]
[1727762766534,3.77722,2647.5,2647.3,0.18911884]
[1727762766747,7.94949095,2647.7,2647.3,0.18911884]
[1727762767460,4.17249095,2647.7,2647.3,0.18911884]
[1727762767713,3.77705,2647.6,2647.3,0.18911884]
[1727762768618,0.39554095,2647.7,2647.3,0.18911884]
[1727762768915,3.77729,2647.4,2647.3,0.18911884]
[1727762774192,3.77729,2647.4,2647.3,0.18887722]
[1727762774519,3.77729,2647.4,2647.0,20.2444]
[1727762774705,3.77729,2647.4,2647.3,0.18887722]
[1727762775076,3.77729,2647.4,2647.0,20.2444]
[1727762775237,3.77729,2647.4,2647.3,0.18884549]
[1727762775439,3.77729,2647.4,2647.0,20.2444]
[1727762775615,3.77729,2647.4,2647.3,0.18884549]
[1727762775815,3.77729,2647.4,2647.0,20.2444]
[1727762776007,3.77729,2647.4,2647.3,0.18884549]
[1727762776208,3.77729,2647.4,2647.0,20.2444]
[1727762776424,3.77729,2647.4,2647.3,0.18884549]
[1727762776611,3.77729,2647.4,2647.0,20.2444]
[1727762777231,0.7925,2647.5,2647.1,0.18895355]
[1727762777442,3.77709,2647.6,2647.1,0.18895355]
[1727762778308,1.21714095,2647.7,2647.1,0.18895355]
[1727762778309,0.39554095,2647.7,2647.4,0.7877]
[1727762778719,3.77672,2647.8,2647.5,0.18873744]
[1727762779551,3.77647,2648.0,2647.5,0.18873744]
[1727762779854,7.55301,2648.0,2647.6,0.7999]
[1727762780216,7.55301,2648.0,2647.7,0.18855326]
[1727762781236,3.77658,2647.9,2647.7,0.18855326]
[1727762782818,3.77647,2648.0,2647.7,0.18855326]
[1727762788275,3.77596,2648.4,2647.9,2.37269809]
[1727762788570,3.77596,2648.4,2648.0,0.18817867]
[1727762788877,7.55192,2648.4,2648.0,0.18817867]
[1727762789169,0.8154,2648.5,2648.0,0.18817867]
[1727762789170,4.59113,2648.5,2648.0,0.18817867]
[1727762789375,3.77582,2648.5,2648.2,0.7632]
[1727762789871,3.77582,2648.5,2648.3,0.1880167]
[1727762790034,3.77582,2648.5,2648.2,0.7632]
[1727762790276,3.77582,2648.5,2648.3,0.1880167]
[1727762790506,3.77582,2648.5,2648.2,0.7632]
[1727762790683,3.77582,2648.5,2648.3,0.1880167]
[1727762791007,3.77566,2648.6,2648.3,0.25607148]
[1727762791171,3.77566,2648.6,2648.4,0.18779779]
[1727762791373,0.3953902,2648.7,2648.4,0.18779779]
[1727762791884,4.1708302,2648.7,2648.4,0.18779779]
[1727762792783,7.9463602,2648.7,2648.4,0.18779779]
[1727762793381,4.1708302,2648.7,2648.4,0.18779779]
[1727762794071,7.9463502,2648.7,2648.4,0.18779779]
[1727762794271,4.1708302,2648.7,2648.4,0.18779779]
[1727762794517,7.9463502,2648.7,2648.4,0.18779779]
[1727762794720,4.1708302,2648.7,2648.4,0.18779779]
[1727762795777,7.9463402,2648.7,2648.4,0.18779779]
[1727762795977,4.1708302,2648.7,2648.4,0.18779779]
[1727762796691,7.9463402,2648.7,2648.4,0.18779779]
[1727762797021,4.1708302,2648.7,2648.4,0.18779779]
[1727762797516,7.9464002,2648.7,2648.4,0.18779779]
[1727762797734,3.7756,2648.6,2648.4,0.18779779]
[1727762799152,7.9463502,2648.7,2648.4,0.18779779]
[1727762799837,4.1708302,2648.7,2648.4,0.18779779]
[1727762799996,3.77544,2648.7,2648.4,0.18779779]
[1727762800207,3.77544,2648.7,2648.5,0.771]
[1727762800745,3.77544,2648.7,2648.6,0.18745513]
[1727762801850,3.7753,2648.8,2648.6,0.18745513]
[1727762802438,3.77543,2648.7,2648.6,0.18745513]
[1727762802819,3.7753,2648.8,2648.6,0.18745513]
[1727762803042,7.5507,2648.8,2648.6,0.18745513]
[1727762803345,3.7753,2648.8,2648.6,0.18745513]
[1727762805271,7.55069,2648.8,2648.6,0.18745513]
[1727762805780,3.7753,2648.8,2648.6,0.18745513]
[1727762806206,7.55067,2648.8,2648.6,0.18745513]
[1727762806489,3.77543,2648.7,2648.6,0.18745513]
[1727762806693,3.7753,2648.8,2648.6,0.18745513]
[1727762807303,4.17039187,2649.0,2648.7,1.60949809]
[1727762807591,4.17039187,2649.0,2648.8,1.00452499]
[1727762807592,3.77508,2649.0,2648.8,1.00452499]
[1727762808848,0.8332,2649.3,2648.8,1.00452499]
[1727762809062,3.775,2649.1,2648.8,1.00452499]
[1727762809261,3.775,2649.1,2648.9,0.26140231]
[1727762809474,3.77479,2649.2,2649.0,0.18714414]
[1727762809697,7.54962,2649.2,2648.8,0.8172]
[1727762810008,3.77489,2649.1,2648.9,0.1871981]
[1727762810701,3.775,2649.0,2648.9,0.1871981]
[1727762816546,3.77493,2649.1,2648.9,0.1871981]
[1727762817216,3.77479,2649.2,2648.9,0.1871981]
[1727762818089,3.77488,2649.1,2648.9,0.1871981]
[1727762818903,0.8127,2649.5,2648.9,0.44858772]
[1727762819107,3.77467,2649.3,2648.9,0.44858772]
[1727762819486,7.54934,2649.3,2648.9,0.44858772]
[1727762820323,3.77467,2649.3,2648.9,0.44858772]
[1727762820487,7.54933,2649.3,2648.9,0.44858772]
[1727762820831,3.77466,2649.3,2648.9,0.44858772]
[1727762821686,7.54937,2649.3,2648.9,0.44858772]
[1727762822313,3.77466,2649.3,2648.9,0.44858772]
[1727762822636,3.77433,2649.5,2649.1,2.40629809]
[1727762822797,3.77433,2649.5,2649.2,0.24062981]
[1727762823132,3.77433,2649.5,2649.2,0.42746316]
[1727762823284,0.7967,2649.8,2649.3,0.785]
[1727762823484,4.57068,2649.8,2649.4,0.18668109]
[1727762824564,0.7967,2649.8,2649.4,0.18668109]
[1727762824728,3.77376,2649.9,2649.4,0.18668109]
[1727762824966,3.77396,2649.8,2649.4,0.18668109]
[1727762825334,7.54759,2649.9,2649.4,0.18668109]
[1727762825516,3.77376,2649.9,2649.4,2.02728394]
[1727762825719,3.7738,2649.9,2649.5,2.35959809]
[1727762825943,3.7738,2649.9,2649.6,0.186513]
[1727762826361,3.7738,2649.9,2649.7,0.8122]
[1727762826663,3.77386,2649.9,2649.7,0.8122]
[1727762826960,3.77386,2649.9,2649.8,0.18640514]
[1727762828517,3.77386,2649.9,2649.4,0.7615]
[1727762828518,5.347794,2649.9,2649.4,0.7615]
[1727762828715,3.77403,2649.7,2649.5,0.18636097]
[1727762829767,3.77415,2649.6,2649.5,0.18636097]
[1727762829913,3.77403,2649.7,2649.5,0.18636097]
[1727762830119,3.77415,2649.6,2649.5,0.18636097]
[1727762830348,3.77403,2649.7,2649.5,0.18636097]
[1727762832366,4.59295,2649.9,2649.5,0.18636097]
[1727762832868,3.77375,2649.9,2649.5,0.18636097]
[1727762833459,7.54759,2649.9,2649.5,0.18636097]
[1727762833775,3.77375,2649.9,2649.5,0.18636097]
[1727762834421,3.77387,2649.8,2649.5,0.18636097]
[1727762836158,3.77375,2649.9,2649.5,0.18636097]
[1727762837562,3.77391,2649.8,2649.5,0.18636097]
[1727762837761,3.77391,2649.8,2649.5,0.81954188]
[1727762839038,3.77391,2649.8,2649.5,0.18636097]
[1727762842746,3.77375,2649.9,2649.5,0.18636097]
[1727762842948,3.77401,2649.7,2649.5,0.18636097]
[1727762843783,3.77375,2649.9,2649.6,0.7637]
[1727762844087,3.77391,2649.8,2649.7,0.1855991]
[1727762848312,6.17260809,2649.8,2649.7,0.1855991]
[1727762848466,6.17260809,2649.8,2649.3,0.8026]
[1727762848812,3.77416,2649.6,2649.4,0.18569754]
[1727762849297,8.33709,2649.8,2649.4,0.18569754]
[1727762849458,3.77407,2649.7,2649.4,0.18569754]
[1727762850605,3.77422,2649.6,2649.4,0.18569754]
[1727762850757,3.77407,2649.7,2649.4,0.18569754]
[1727762854064,7.54821,2649.7,2649.4,0.18569754]
[1727762854295,3.77407,2649.7,2649.4,0.18569754]
[1727762855363,3.77418,2649.6,2649.4,0.18569754]
[1727762855564,3.77429,2649.5,2649.4,0.18569754]
[1727762855818,4.57359,2649.5,2649.4,0.18569754]
[1727762855960,3.77458,2649.3,2649.2,19.48]
[1727762856424,3.77458,2649.3,2649.2,19.6657896]
[1727762856965,3.77458,2649.3,2649.2,0.1857896]
[1727762857471,3.77458,2649.3,2648.8,0.801]
[1727762857673,3.77458,2649.3,2648.9,0.18601167]
[1727762858068,3.77444,2649.4,2649.0,0.771]
[1727762858406,3.7742,2649.6,2649.1,0.18590375]
[1727762858616,3.7742,2649.6,2649.2,0.8237]
[1727762858617,3.77438,2649.5,2649.2,0.8237]
[1727762858908,3.77415,2649.6,2649.3,0.18579585]
[1727762859118,3.77415,2649.6,2649.2,0.8237]
[1727762859611,7.54841,2649.6,2649.3,0.18579585]
[1727762859964,3.77415,2649.6,2649.2,0.8237]
[1727762860194,3.77415,2649.6,2649.3,0.18579585]
[1727762860703,3.77415,2649.6,2649.4,0.18574191]
[1727762860902,3.77415,2649.6,2649.2,0.8237]
[1727762861117,3.77415,2649.6,2649.3,0.18579585]
[1727762861269,3.77415,2649.6,2649.2,0.8237]
[1727762861621,3.77415,2649.6,2649.3,0.18579585]
[1727762861911,3.7743,2649.5,2649.2,0.8237]
[1727762862079,3.7743,2649.5,2649.3,0.18579585]
[1727762862279,3.77415,2649.6,2649.2,0.8237]
[1727762862280,3.77443,2649.4,2649.2,0.8237]
[1727762862663,3.77443,2649.4,2649.3,0.18579585]
[1727762863011,3.7743,2649.5,2649.2,0.8237]
[1727762863173,3.7743,2649.5,2649.3,0.18579585]
[1727762863697,3.7743,2649.5,2649.4,0.18574191]
[1727762863905,3.7743,2649.5,2649.2,0.8237]
[1727762864115,3.7743,2649.5,2649.3,0.18579585]
[1727762864315,3.7743,2649.5,2649.2,0.8237]
[1727762864483,3.7743,2649.5,2649.3,0.18579585]
[1727762864679,3.7743,2649.5,2649.2,0.8237]
[1727762865018,3.7743,2649.5,2649.3,0.18579585]
[1727762865430,3.7743,2649.5,2649.2,0.8237]
[1727762865719,3.77447,2649.4,2649.2,0.8237]
[1727762867005,3.77423,2649.6,2649.2,2.43319809]
[1727762867179,3.77401,2649.7,2649.3,0.792]
[1727762867384,3.77394,2649.8,2649.3,0.792]
[1727762867385,3.77417,2649.6,2649.3,0.792]
[1727762867620,3.77417,2649.6,2649.3,1.248678]
[1727762872828,3.77402,2649.7,2649.3,1.248678]
[1727762873029,3.77423,2649.6,2649.3,1.248678]
[1727762878064,3.77423,2649.6,2649.4,0.18574824]
[1727762878827,7.54846,2649.6,2649.4,0.18574824]
[1727762879037,3.77423,2649.6,2649.4,0.18574824]
[1727762885778,3.77402,2649.7,2649.4,0.18574824]
[1727762886453,7.54788,2649.8,2649.4,0.18574824]
[1727762886655,3.7739,2649.8,2649.4,0.18574824]
[1727762887376,7.54785,2649.8,2649.4,0.18574824]
[1727762888346,3.77402,2649.7,2649.4,0.18574824]
[1727762888548,3.7739,2649.8,2649.4,0.18574824]
[1727762888810,7.54791,2649.8,2649.4,0.18574824]
[1727762889144,3.7739,2649.8,2649.4,0.18574824]
[1727762889345,7.54789,2649.8,2649.4,0.18574824]
[1727762890358,3.7739,2649.8,2649.4,0.18574824]
[1727762890961,7.54788,2649.8,2649.4,0.18574824]
[1727762892370,7.54788,2649.8,2649.4,19.66574824]
[1727762892583,3.7739,2649.8,2649.4,21.55169252]
[1727762892762,7.5479,2649.8,2649.5,0.7789]
[1727762892981,7.5479,2649.8,2649.6,0.18561186]
[1727762893264,3.77401,2649.7,2649.6,0.18561186]
[1727762894361,3.7739,2649.8,2649.6,0.18561186]
[1727762894818,3.77401,2649.7,2649.6,0.18561186]
[1727762895444,3.7739,2649.8,2649.6,0.18561186]
[1727762895766,3.77394,2649.8,2649.6,0.18561186]
[1727762895965,3.77388,2649.8,2649.6,0.18561186]
[1727762896368,3.77401,2649.7,2649.6,0.18561186]
[1727762899934,2.37049809,2650.1,2649.7,0.7709]
[1727762899935,3.77355,2650.1,2649.7,0.7709]
[1727762900445,3.77355,2650.1,2649.8,0.18548501]
[1727762900446,3.77354,2650.1,2649.8,0.18548501]
[1727762901038,7.54707,2650.1,2649.8,0.18548501]
[1727762901196,7.54709,2650.1,2649.8,0.18548501]
[1727762902130,3.77353,2650.1,2649.8,0.18548501]
[1727762902431,4.60082,2650.3,2649.9,0.7957]
[1727762902432,7.54648,2650.3,2649.9,0.7957]
[1727762902599,3.77322,2650.3,2649.9,20.2757]
[1727762902798,3.77322,2650.3,2650.0,0.18524726]
[1727762903841,7.54647,2650.3,2650.0,0.18524726]
[1727762904039,3.77322,2650.3,2650.0,0.18524726]
[1727762904542,3.7733,2650.2,2650.0,0.18524726]
[1727762905740,3.77322,2650.3,2650.0,0.18524726]
[1727762906415,3.77332,2650.2,2650.0,0.18524726]
[1727762908661,3.77322,2650.3,2650.0,0.18524726]
[1727762908822,3.77344,2650.1,2650.0,0.18524726]
[1727762912801,7.54651,2650.3,2650.0,0.18524726]
[1727762913528,3.77317,2650.3,2650.0,0.18524726]
[1727762913774,3.77306,2650.4,2650.0,0.18524726]
[1727762913928,3.77295,2650.5,2650.0,0.18524726]
[1727762914122,3.77295,2650.5,2650.1,0.8111]
[1727762914326,3.77302,2650.4,2650.1,0.8111]
[1727762914573,3.77295,2650.5,2650.2,0.18496205]
[1727762914927,3.77308,2650.4,2650.2,0.18496205]
[1727762915164,3.77295,2650.5,2650.3,0.8111]
[1727762915324,3.77301,2650.4,2650.3,0.8111]
[1727762915877,3.77301,2650.4,2650.0,0.8111]
[1727762916525,3.77295,2650.5,2650.0,0.8111]
[1727762916725,3.77295,2650.5,2650.1,0.46602758]
[1727762916930,3.77295,2650.5,2650.1,0.54148858]
[1727762917968,3.77295,2650.5,2650.1,0.46602758]
[1727762918729,3.77273,2650.6,2650.2,0.8162]
[1727762919038,3.77287,2650.5,2650.2,1.32931486]
[1727762919225,3.77304,2650.4,2650.2,0.8162]
[1727762919428,3.77287,2650.5,2650.2,0.8162]
[1727762922458,3.77309,2650.4,2650.2,0.8162]
[1727762922954,3.77309,2650.4,2650.3,0.18472764]
[1727762923328,3.77309,2650.4,2650.2,0.8162]
[1727762923528,3.77309,2650.4,2650.3,0.18472764]
[1727762923929,3.77309,2650.4,2650.1,19.48]
[1727762924133,3.77309,2650.4,2650.3,0.18472764]
[1727762924327,3.77287,2650.5,2650.2,0.18478155]
[1727762924633,3.77287,2650.5,2650.3,0.18472764]
[1727762925065,3.77316,2650.3,2650.1,19.48]
[1727762926089,3.7733,2650.2,2650.1,19.48]
[1727762927989,5.38279809,2650.2,2650.1,19.48]
[1727762928285,3.77386,2649.8,2649.7,0.7554]
[1727762928788,3.77415,2649.6,2649.5,20.274]
[1727762928979,3.77415,2649.6,2649.5,0.794]
[1727762929649,3.77401,2649.7,2649.4,19.48]
[1727762929992,3.77429,2649.5,2649.3,0.794]
[1727762930201,3.77443,2649.4,2649.3,0.794]
[1727762932353,3.77467,2649.3,2649.0,0.8022]
[1727762932892,3.77473,2649.2,2649.0,0.8022]
[1727762935489,3.77444,2649.4,2649.0,0.8022]
[1727762936965,3.77444,2649.4,2649.0,20.2822]
[1727762937196,3.77423,2649.6,2649.2,0.759]
[1727762937197,7.54846,2649.6,2649.2,0.759]
[1727762937411,3.77423,2649.6,2649.2,0.759]
[1727762937671,7.54848,2649.6,2649.2,0.759]
[1727762937883,7.54848,2649.6,2649.3,0.17341556]
[1727762938290,3.77423,2649.6,2649.2,0.759]
[1727762938491,3.77423,2649.6,2649.4,0.17336161]
[1727762938809,3.77423,2649.6,2649.2,0.759]
[1727762939021,3.77392,2649.8,2649.6,0.7572]
[1727762939170,3.77401,2649.7,2649.6,0.7572]
[1727762939782,3.77401,2649.7,2649.6,0.93064694]
[1727762940426,3.7737,2650.0,2649.6,2.54014503]
[1727762940571,3.7737,2650.0,2649.7,0.2540145]
[1727762940771,3.7737,2650.0,2649.6,0.93064694]
[1727762940966,3.77395,2649.8,2649.6,0.93064694]
[1727762942321,7.54742,2650.0,2649.6,0.93064694]
[1727762942820,3.77377,2649.9,2649.6,0.93064694]
[1727762943003,3.77377,2649.9,2649.6,1.1922091]
[1727762944316,3.77377,2649.9,2649.6,0.93064694]
[1727762944518,3.77392,2649.8,2649.6,0.93064694]
[1727762944722,3.77401,2649.7,2649.6,0.93064694]
[1727762945078,3.77392,2649.8,2649.6,0.93064694]
[1727762945279,3.77392,2649.8,2649.6,0.17344694]
[1727762945280,3.77401,2649.7,2649.6,0.17344694]
[1727762945819,7.5479,2649.8,2649.5,19.48]
[1727762945972,3.77392,2649.8,2649.6,0.17345644]
[1727762948981,4.53236,2650.0,2649.6,0.17345644]
[1727762949204,7.54734,2650.0,2649.7,0.8254]
[1727762949519,3.77373,2649.9,2649.8,0.17334858]
[1727762950072,0.8194,2650.3,2649.8,0.17334858]
[1727762950405,3.77341,2650.2,2649.8,0.17334858]
[1727762950606,3.77368,2650.0,2649.8,0.17334858]
[1727762950902,3.77372,2649.9,2649.8,0.17334858]
[1727762953124,3.77372,2649.9,2649.5,0.8158]
[1727762953322,3.77372,2649.9,2649.8,0.17322188]
[1727762953529,3.77372,2649.9,2649.5,0.8158]
[1727762953826,3.77372,2649.9,2649.8,0.17322188]
[1727762954033,3.77372,2649.9,2649.5,0.8158]
[1727762954182,3.77372,2649.9,2649.8,0.17322188]
[1727762954381,3.77372,2649.9,2649.5,0.8158]
[1727762954581,3.77372,2649.9,2649.8,0.17322188]
[1727762954820,3.77372,2649.9,2649.5,20.2958]
[1727762955282,3.77372,2649.9,2649.6,0.17332973]
[1727762960506,3.77372,2649.9,2649.6,19.65332973]
[1727762961554,3.77387,2649.8,2649.6,19.65332973]
[1727762962838,3.77401,2649.7,2649.6,19.65332973]
[1727762963012,3.77401,2649.7,2649.6,0.17332973]
[1727762963425,3.77401,2649.7,2649.4,19.48]
[1727762963650,3.77401,2649.7,2649.6,0.17332023]
[1727762963826,3.77401,2649.7,2649.5,0.17337417]
[1727762964057,3.77401,2649.7,2649.6,0.17332023]
[1727762964210,3.77401,2649.7,2649.4,19.48]
[1727762964433,3.77401,2649.7,2649.5,0.17337417]
[1727762966626,3.77415,2649.6,2649.5,19.65337417]
[1727762970712,5.38364809,2649.6,2649.5,0.17337417]
[1727762971287,3.77456,2649.4,2649.0,20.2722]
[1727762971579,3.77456,2649.4,2649.0,0.7922]
[1727762971787,3.77456,2649.4,2649.0,0.86769221]
[1727762975489,3.77456,2649.4,2649.0,20.34769221]
[1727762975795,3.77456,2649.4,2649.0,20.2722]
[1727762976591,3.77458,2649.3,2649.0,20.2722]
[1727762981259,3.77458,2649.3,2649.0,0.7922]
[1727762981466,3.77458,2649.3,2649.0,0.86769232]
[1727762983004,3.77458,2649.3,2649.1,0.1680298]
[1727762991002,3.77458,2649.3,2649.1,0.16707026]
[1727762991914,3.77472,2649.2,2649.1,0.16707026]
[1727762992083,4.76592981,2649.2,2649.1,0.16707026]
[1727762993700,4.57156,2649.1,2648.9,19.48]
[1727762995083,3.775,2649.0,2648.9,19.48]
[1727762997810,3.77545,2648.7,2648.4,0.7674]
[1727762997992,3.77545,2648.7,2648.4,20.2474]
[1727762998165,1.60949809,2649.0,2648.4,20.2474]
[1727762998369,3.77536,2648.8,2648.4,20.2474]
[1727762998568,3.77536,2648.8,2648.5,0.16284476]
[1727762998807,7.55073,2648.8,2648.5,0.16284476]
[1727762999217,3.77536,2648.8,2648.5,0.16284476]
[1727763004933,3.77557,2648.6,2648.5,0.16284476]
[1727763005133,4.77338081,2648.6,2648.5,0.16284476]
[1727763005636,3.77588,2648.4,2648.0,0.7852]
[1727763007138,7.55183,2648.4,2648.0,0.7852]
[1727763007287,3.77588,2648.4,2648.0,0.7852]
[1727763008391,7.55185,2648.4,2648.0,0.7852]
[1727763008797,3.77588,2648.4,2648.0,0.7852]
[1727763009892,7.55183,2648.4,2648.0,0.7852]
[1727763010623,3.77588,2648.4,2648.0,0.7852]
[1727763010836,7.55182,2648.4,2648.0,0.7852]
[1727763011010,7.55183,2648.4,2648.0,20.2652]
[1727763011847,3.776,2648.3,2648.0,20.2652]
[1727763012160,3.77572,2648.5,2648.0,20.2652]
[1727763012357,3.77572,2648.5,2648.0,24.04161]
[1727763012666,3.77566,2648.6,2648.0,24.04161]
[1727763012819,3.77573,2648.5,2648.0,20.2652]
[1727763013019,3.77573,2648.5,2648.1,0.15780872]
[1727763015734,0.8176,2648.8,2648.1,0.15780872]
[1727763015973,3.77585,2648.5,2648.1,0.15780872]
[1727763016167,3.7759,2648.4,2648.1,0.15780872]
[1727763016838,3.7759,2648.4,2648.1,19.63780872]
[1727763018488,3.77614,2648.2,2648.1,19.63780872]
[1727763019341,3.77614,2648.2,2648.1,0.15780872]
[1727763019878,3.77614,2648.2,2647.9,19.48]
[1727763020114,3.77634,2648.1,2647.9,19.48]
[1727763020277,3.77634,2648.1,2648.0,0.15798695]
[1727763022768,3.77614,2648.2,2648.0,0.15798695]
[1727763023307,3.77629,2648.1,2648.0,0.15798695]
[1727763024012,3.77614,2648.2,2648.0,0.15798695]
[1727763024391,3.77629,2648.1,2648.0,0.15798695]
[1727763025326,7.55241,2648.2,2648.0,0.15798695]
[1727763026574,3.77614,2648.2,2648.0,0.15798695]
[1727763026811,3.77629,2648.1,2648.0,0.15798695]
[1727763027178,4.55199,2648.1,2648.0,0.15798695]
[1727763031862,4.55199,2648.1,2648.0,0.19978075]
[1727763032243,4.55199,2648.1,2647.6,21.91739809]
[1727763032417,4.55199,2648.1,2648.0,0.19979629]
[1727763032612,5.384803,2648.1,2647.6,21.91739809]
[1727763032813,4.55199,2648.1,2648.0,0.19979629]
[1727763033051,3.77647,2648.0,2647.6,21.91739809]
[1727763033427,4.5787,2648.4,2647.8,1.60949809]
[1727763033635,3.77604,2648.3,2648.0,1.60949809]
[1727763034377,3.77604,2648.3,2647.9,0.7894]
[1727763034668,4.5787,2648.4,2647.9,0.7894]
[1727763034871,3.77616,2648.2,2647.9,0.7894]
[1727763037018,7.55239,2648.2,2647.9,0.7894]
[1727763037317,3.77643,2648.0,2647.7,0.8142]
[1727763038071,3.77643,2648.0,2647.6,21.08949809]
[1727763038072,3.77657,2647.9,2647.6,21.08949809]
[1727763038239,3.77657,2647.9,2647.6,19.48]
[1727763041232,3.77638,2648.1,2647.7,0.8274]
[1727763042133,7.55275,2648.1,2647.7,0.8274]
[1727763042520,7.55274,2648.1,2647.7,0.8274]
[1727763042714,3.77637,2648.1,2647.7,0.8274]
[1727763042955,3.77637,2648.1,2647.8,0.19988256]
[1727763043475,3.77657,2647.9,2647.7,0.8274]
[1727763044240,3.77657,2647.9,2647.6,19.48]
[1727763044489,3.77637,2648.1,2647.6,19.48]
[1727763044751,4.59011,2648.0,2647.6,19.48]
[1727763046960,4.59011,2648.0,2647.6,21.08949809]
[1727763047878,0.8136,2648.0,2647.6,21.08949809]
[1727763048170,3.77637,2648.1,2647.6,21.08949809]
[1727763048372,7.55275,2648.1,2647.6,21.08949809]
[1727763049264,7.55276,2648.1,2647.6,21.08949809]
[1727763050260,3.77637,2648.1,2647.6,21.08949809]
[1727763051100,7.55278,2648.1,2647.6,21.08949809]
[1727763052089,3.77637,2648.1,2647.8,1.60949809]
[1727763052403,3.77637,2648.1,2647.9,0.8029]
[1727763053313,3.77643,2648.0,2647.6,20.2332]
[1727763053603,4.52805,2648.2,2647.7,1.60949809]
[1727763053757,3.77629,2648.1,2647.7,1.60949809]
[1727763055502,3.77629,2648.1,2647.7,21.08949809]
[1727763058199,3.77629,2648.1,2647.8,0.19989499]
[1727763058607,3.77629,2648.1,2647.7,21.08949809]
[1727763058813,3.77629,2648.1,2647.9,0.19984253]
[1727763058961,3.77629,2648.1,2647.8,0.19989809]
[1727763059179,3.77629,2648.1,2648.0,0.19978697]
[1727763059404,3.77629,2648.1,2647.9,0.19984253]
[1727763059612,3.77629,2648.1,2648.0,0.19978697]
[1727763060102,3.77629,2648.1,2647.7,21.08949809]
[1727763060399,3.77629,2648.1,2647.8,0.8237]
[1727763060601,3.77629,2648.1,2647.8,1.02359809]
[1727763061101,3.77629,2648.1,2647.8,0.19989809]
[1727763061400,3.77648,2648.0,2647.6,20.293]
[1727763061608,3.77648,2648.0,2647.9,0.19984253]
[1727763061898,3.77658,2647.9,2647.6,20.293]
[1727763062461,3.77658,2647.9,2647.6,19.48]
[1727763062462,3.77681,2647.8,2647.6,19.48]
[1727763063057,8.384307,2647.9,2647.6,19.48]
[1727763063474,4.607637,2647.9,2647.6,19.48]
[1727763063679,3.77686,2647.7,2647.6,19.48]
[1727763063983,0.814,2647.8,2647.6,19.48]
[1727763065701,4.59081,2647.8,2647.4,0.8046]
[1727763065911,4.59081,2647.8,2647.2,5.38696809]
[1727763066066,4.59081,2647.8,2647.2,25.68296809]
[1727763067120,3.77686,2647.7,2647.2,25.68296809]
[1727763069512,3.77686,2647.7,2647.4,1.60949809]
[1727763072837,3.77686,2647.7,2647.5,0.16313639]
[1727763074045,3.77686,2647.7,2647.3,21.08949809]
[1727763074336,3.77686,2647.7,2647.6,0.16308081]
[1727763074488,4.613611,2647.7,2647.3,21.08949809]
[1727763074691,3.77686,2647.7,2647.6,0.16308081]
[1727763074889,3.77686,2647.7,2647.3,21.08949809]
[1727763075136,3.77686,2647.7,2647.6,0.16308081]
[1727763075302,3.77686,2647.7,2647.3,21.08949809]
[1727763075507,3.77686,2647.7,2647.6,0.16308081]
[1727763075706,4.613611,2647.7,2647.3,21.08949809]
[1727763075930,4.613611,2647.7,2647.6,0.16308081]
[1727763076133,4.613611,2647.7,2647.3,21.08949809]
[1727763076351,4.613611,2647.7,2647.6,0.16308081]
[1727763076930,4.613611,2647.7,2647.3,21.08949809]
[1727763077132,4.613611,2647.7,2647.6,0.16308081]
[1727763077298,4.613611,2647.7,2647.3,21.08949809]
[1727763077726,4.613611,2647.7,2647.4,0.16319197]